{"text_format":"3","workbook":"xlsx","n_sheets":3,"sheets":["Skolēnu saraksts","Klases saraksts","Informācija par skolēnu"],"not_rendered":{"images":2,"defined_names":8},"read":"whole","date_system":"1900"}

{"sheet":"Skolēnu saraksts","index":0,"n_rows":8,"n_cols":13,"rows_kept":8,"merged":[[1,2,2,3],[1,4,1,11],[2,4,2,11],[6,12,8,16]]}
[]
[null,null,"Skolēnu saraksts",null,"ATVĒRT KLASES SARAKSTU"]
[{"$nulls":4},"ATVĒRT DETALIZĒTU INFORMĀCIJU PAR SKOLĒNU"]
[null,null,"SKOLĒNA VĀRDS","E-PASTS","TĀLRUNIS MĀJĀS","MOBILAIS TĀLRUNIS","DOB","KONTAKTPERSONA ĀRKĀRTAS SITUĀCIJĀM","TĀLRUNIS ĀRKĀRTAS SITUĀCIJĀM","ĀRSTS","ĀRSTA TĀLRUNIS","  "]
[null,null,"1. vārds","E-pasta adrese","Tālrunis mājās","Mobilais tālrunis","Datums","1. kontaktpersona:","Tālrunis ārkārtas situācijām","Ārsts 1","Ārsta tālrunis"]
[null,null,"2. nosaukums","E-pasta adrese","Tālrunis mājās","Mobilais tālrunis","Datums","2. kontaktpersona:","Tālrunis ārkārtas situācijām","Ārsts 2","Ārsta tālrunis"]
[null,null,"3. vārds","E-pasta adrese","Tālrunis mājās","Mobilais tālrunis","Datums","3. kontaktpersona:","Tālrunis ārkārtas situācijām","Ārsts 3","Ārsta tālrunis",null,"Padoms: lai pievienotu papildu skolēnus, tabulas pēdējā šūnā nospiediet tabulēšanas taustiņu."]
[null,null,"4. vārds","E-pasta adrese","Tālrunis mājās","Mobilais tālrunis","Datums","4. kontaktpersona:","Tālrunis ārkārtas situācijām","Ārsts 4","Ārsta tālrunis"]

{"sheet":"Klases saraksts","index":1,"n_rows":12,"n_cols":7,"rows_kept":12,"merged":[[1,2,2,2],[1,3,2,3],[1,4,1,6],[2,4,2,6]]}
[]
[null,null,"Klases saraksts","Grafiskā dizaina institūts","ATVĒRT SKOLĒNU SARAKSTU"]
[{"$nulls":4},"ATVĒRT DETALIZĒTU INFORMĀCIJU PAR SKOLĒNU"]
[null,null,"MĀCĪBU PRIEKŠMETS","Mācību priekšmeta nosaukums","SĀKUMA DATUMS","Datums"]
[null,null,"PASNIEDZĒJS","1. pasniedzējs","BEIGU DATUMS","Datums"]
[null,null,"REĢISTRĒTIE SKOLĒNI",{"$f":"COUNTA(StudentRoster[SKOLĒNA VĀRDS])","v":4}]
[]
[null,null,"SKOLĒNA VĀRDS","E-PASTS","TĀLRUNIS MĀJĀS","MOBILAIS TĀLRUNIS","  "]
[null,null,"Vārds 1",{"$f":"IFERROR(VLOOKUP(StudentRoster[[#This Row],[SKOLĒNA VĀRDS]],Skolēni[],2),\"\")","v":"E-pasta adrese"},{"$f":"IFERROR(VLOOKUP(StudentRoster[[#This Row],[SKOLĒNA VĀRDS]],Skolēni[],3),\"\")","v":"Tālrunis mājās"},{"$f":"IFERROR(VLOOKUP(StudentRoster[[#This Row],[SKOLĒNA VĀRDS]],Skolēni[],4),\"\")","v":"Mobilais tālrunis"}]
[null,null,"2. nosaukums",{"$f":"IFERROR(VLOOKUP(StudentRoster[[#This Row],[SKOLĒNA VĀRDS]],Skolēni[],2),\"\")","v":"E-pasta adrese"},{"$f":"IFERROR(VLOOKUP(StudentRoster[[#This Row],[SKOLĒNA VĀRDS]],Skolēni[],3),\"\")","v":"Tālrunis mājās"},{"$f":"IFERROR(VLOOKUP(StudentRoster[[#This Row],[SKOLĒNA VĀRDS]],Skolēni[],4),\"\")","v":"Mobilais tālrunis"}]
[null,null,"3. vārds",{"$f":"IFERROR(VLOOKUP(StudentRoster[[#This Row],[SKOLĒNA VĀRDS]],Skolēni[],2),\"\")","v":"E-pasta adrese"},{"$f":"IFERROR(VLOOKUP(StudentRoster[[#This Row],[SKOLĒNA VĀRDS]],Skolēni[],3),\"\")","v":"Tālrunis mājās"},{"$f":"IFERROR(VLOOKUP(StudentRoster[[#This Row],[SKOLĒNA VĀRDS]],Skolēni[],4),\"\")","v":"Mobilais tālrunis"}]
[null,null,"4. vārds",{"$f":"IFERROR(VLOOKUP(StudentRoster[[#This Row],[SKOLĒNA VĀRDS]],Skolēni[],2),\"\")","v":"E-pasta adrese"},{"$f":"IFERROR(VLOOKUP(StudentRoster[[#This Row],[SKOLĒNA VĀRDS]],Skolēni[],3),\"\")","v":"Tālrunis mājās"},{"$f":"IFERROR(VLOOKUP(StudentRoster[[#This Row],[SKOLĒNA VĀRDS]],Skolēni[],4),\"\")","v":"Mobilais tālrunis"}]

{"sheet":"Informācija par skolēnu","index":2,"n_rows":13,"n_cols":4,"rows_kept":13,"merged":[[1,2,2,2],[1,3,1,4],[2,3,2,4],[3,2,3,3]]}
[]
[null,null,"Detalizēta informācija par skolēnu","ATVĒRT SKOLĒNU SARAKSTU"]
[{"$nulls":3},"ATVĒRT KLASES SARAKSTU"]
[null,null,"PADOMS. LAI ATJAUNINĀTU INFORMĀCIJU PAR SKOLĒNU, ATLASIET SKOLĒNU NOLAIŽAMAJĀ SARAKSTĀ ŠŪNĀ D5"]
[null,null,"SKOLĒNA VĀRDS","1. vārds"]
[null,null,"E-PASTS",{"$f":"IFERROR(VLOOKUP(Skolēna_vārds,Skolēni[],2,FALSE),\"\")","v":"E-pasta adrese"}]
[null,null,"TĀLRUNIS MĀJĀS",{"$f":"IFERROR(VLOOKUP(Skolēna_vārds,Skolēni[],3,FALSE),\"\")","v":"Tālrunis mājās"}]
[null,null,"MOBILAIS TĀLRUNIS",{"$f":"IFERROR(VLOOKUP(Skolēna_vārds,Skolēni[],4,FALSE),\"\")","v":"Mobilais tālrunis"}]
[null,null,"DOB",{"$f":"IFERROR(VLOOKUP(Skolēna_vārds,Skolēni[],5,FALSE),\"\")","v":"Datums"}]
[null,null,"KONTAKTPERSONA ĀRKĀRTAS SITUĀCIJĀM",{"$f":"IFERROR(VLOOKUP(Skolēna_vārds,Skolēni[],6,FALSE),\"\")","v":"1. kontaktpersona:"}]
[null,null,"TĀLRUNIS ĀRKĀRTAS SITUĀCIJĀM",{"$f":"IFERROR(VLOOKUP(Skolēna_vārds,Skolēni[],7,FALSE),\"\")","v":"Tālrunis ārkārtas situācijām"}]
[null,null,"ĀRSTS",{"$f":"IFERROR(VLOOKUP(Skolēna_vārds,Skolēni[],8,FALSE),\"\")","v":"Ārsts 1"}]
[null,null,"ĀRSTA TĀLRUNIS",{"$f":"IFERROR(VLOOKUP(Skolēna_vārds,Skolēni[],9,FALSE),\"\")","v":"Ārsta tālrunis"}]